bitfinex/quotes_ETHUSD_20250904
["timestamp","ask_amount","ask_price","bid_price","bid_amount"]
[1756993348540,4.19060811,4381.6,4381.5,0.004]
[1756993348957,1.9083368,4381.6,4381.5,0.004]
[1756993349154,7.55917131,4381.6,4381.5,0.004]
[1756993349748,10.55917131,4381.6,4381.5,0.004]
[1756993349925,10.86870781,4381.6,4381.5,0.004]
[1756993350127,10.86870781,4381.6,4381.1,0.025]
[1756993350128,2.28240606,4381.4,4381.1,0.025]
[1756993350341,3.0,4381.2,4379.8,0.025]
[1756993350566,2.28308298,4380.1,4377.8,0.025]
[1756993350883,16.23753281,4381.1,4376.8,0.025]
[1756993350884,11.88953281,4378.9,4376.9,0.09151758]
[1756993351045,1.681,4378.8,4376.8,0.025]
[1756993351252,4.354,4378.7,4376.8,0.025]
[1756993351652,0.944,4378.6,4376.8,0.025]
[1756993351860,0.944,4378.6,4376.9,0.02284722]
[1756993352094,1.681,4378.8,4377.7,2.28428201]
[1756993352373,4.353,4378.7,4377.8,0.2284282]
[1756993353072,4.352,4378.6,4377.8,0.2284282]
[1756993353377,4.352,4378.6,4377.0,0.4541]
[1756993353378,3.0,4378.4,4376.8,0.025]
[1756993353684,4.356,4378.3,4376.8,0.025]
[1756993353886,2.28417429,4378.0,4376.8,0.025]
[1756993354216,7.58400201,4378.3,4376.9,0.02284722]
[1756993354217,5.3,4378.3,4376.9,0.02284722]
[1756993354356,0.944,4378.3,4376.8,0.025]
[1756993354863,0.4832,4378.3,4377.5,2.28438076]
[1756993355074,0.4832,4378.3,4377.6,0.22843808]
[1756993355249,0.4832,4378.3,4376.8,0.025]
[1756993355250,0.4832,4378.3,4376.8,2.30976407]
[1756993355468,4.389,4378.6,4377.0,2.28466986]
[1756993355697,3.944,4378.5,4376.8,0.025]
[1756993355980,0.944,4378.5,4376.8,0.025]
[1756993356541,0.944,4378.5,4377.4,2.2844409]
[1756993356749,0.1144,4378.1,4377.6,2.28434498]
[1756993356943,0.1144,4378.1,4377.5,0.34284409]
[1756993357187,0.1144,4378.1,4376.9,2.28468936]
[1756993357188,0.4832,4378.5,4377.0,0.02284669]
[1756993357349,0.1144,4378.4,4377.8,0.1144]
[1756993357679,0.1136,4378.4,4377.8,0.1144]
[1756993358057,0.025,4378.8,4377.4,0.02284461]
[1756993358244,0.025,4378.8,4378.3,0.1144]
[1756993358454,0.4832,4378.7,4378.3,0.1144]
[1756993358661,0.025,4378.8,4378.3,0.1144]
[1756993358876,0.025,4378.8,4378.6,2.28383004]
[1756993359066,0.025,4378.8,4378.7,2.28378285]
[1756993359379,0.025,4378.8,4378.7,3.09862067]
[1756993359576,0.025,4378.8,4378.7,3.19018285]
[1756993359968,0.025,4378.8,4378.7,3.64428285]
[1756993360165,0.025,4378.8,4378.7,3.66712067]
[1756993360395,0.025,4378.8,4378.7,3.04010485]
[1756993360612,0.025,4378.8,4378.7,7.43510485]
[1756993360750,0.025,4378.8,4378.7,3.04010485]
[1756993360951,0.025,4378.8,4378.7,0.1144]
[1756993361176,0.969,4378.8,4378.0,2.28414268]
[1756993361378,0.4832,4378.7,4377.9,0.1144]
[1756993361555,0.1144,4378.5,4377.9,0.1144]
[1756993361753,0.5752,4378.5,4377.9,0.1144]
[1756993361992,0.1144,4378.5,4377.9,0.1144]
[1756993362171,0.1144,4378.5,4378.4,2.28393933]
[1756993362467,0.025,4378.8,4378.7,2.28378285]
[1756993362678,0.025,4378.8,4378.5,2.283838]
[1756993362862,0.025,4378.8,4378.4,0.57119779]
[1756993363063,0.025,4378.8,4378.6,2.28379258]
[1756993363287,0.025,4378.8,4378.4,0.57119779]
[1756993363589,0.025,4379.8,4379.7,2.28326141]
[1756993364083,0.5082,4379.8,4379.7,0.1144]
[1756993364452,0.025,4379.8,4379.7,2.39766141]
[1756993364653,0.025,4379.8,4379.7,2.88859401]
[1756993364886,0.025,4379.8,4379.7,3.6577614]
[1756993365184,0.025,4379.8,4379.7,2.8657614]
[1756993366687,0.025,4379.8,4379.7,0.1144]
[1756993366896,0.025,4379.8,4379.7,2.39766141]
[1756993367188,0.025,4379.8,4379.7,2.42049402]
[1756993367398,0.025,4379.8,4379.7,2.39766141]
[1756993368055,0.025,4379.8,4379.7,3.64376141]
[1756993368261,0.1394,4380.8,4380.7,2.2827402]
[1756993368470,0.025,4380.8,4380.7,2.2827402]
[1756993368695,0.025,4380.8,4380.7,3.1891402]
[1756993368904,0.025,4380.8,4380.7,7.5611402]
[1756993369181,0.025,4380.8,4380.7,6.7681402]
[1756993369395,0.025,4380.8,4380.7,7.67323582]
[1756993369889,0.0744,4381.0,4380.9,3.07463598]
[1756993370568,0.0744,4381.0,4380.9,2.28263598]
[1756993370768,0.0744,4381.0,4380.7,0.1144]
[1756993370969,0.944,4380.9,4379.7,0.5927125]
[1756993371168,0.0744,4381.0,4379.7,4.366]
[1756993371369,0.0744,4381.0,4380.9,2.28263598]
[1756993371568,0.0744,4381.0,4380.9,7.45663598]
[1756993371885,0.0744,4381.0,4380.9,8.10043598]
[1756993372091,1e-08,4381.0,4380.9,8.10043598]
[1756993372289,1e-08,4381.0,4380.9,11.10043598]
[1756993372462,1e-08,4381.0,4380.9,12.1387536]
[1756993372658,1e-08,4381.0,4380.9,11.9490536]
[1756993372862,1e-08,4381.0,4380.9,11.9570536]
[1756993373080,1e-08,4381.0,4380.9,7.5670536]
[1756993373389,1e-08,4381.0,4380.9,11.9570536]
[1756993373578,1e-08,4381.0,4380.9,12.1467536]
[1756993373890,1e-08,4381.0,4380.9,11.5029536]
[1756993374057,1e-08,4381.0,4380.9,11.4979536]
[1756993374655,1e-08,4381.0,4380.9,11.9520536]
[1756993375261,1e-08,4381.0,4380.9,7.1129536]
[1756993375460,1e-08,4381.0,4380.9,11.4979536]
[1756993376575,1e-08,4381.0,4380.9,11.4909536]
[1756993377498,1e-08,4381.0,4380.9,12.1347536]
[1756993377863,1e-08,4381.0,4380.9,7.5670536]
[1756993378173,1e-08,4381.0,4380.9,11.9390536]
[1756993378368,1e-08,4381.0,4380.9,7.5670536]
[1756993378693,1e-08,4381.0,4380.9,11.9360536]
[1756993378895,1e-08,4381.0,4380.9,7.5670536]
[1756993379192,1e-08,4381.0,4380.9,11.4819536]
[1756993379363,1e-08,4381.0,4380.9,12.1257536]
[1756993379757,1e-08,4381.0,4380.9,11.9360536]
[1756993380363,1e-08,4381.0,4380.9,7.1129536]
[1756993380558,1e-08,4381.0,4380.9,10.6819536]
[1756993380795,1e-08,4381.0,4380.9,11.4739536]
[1756993381002,1e-08,4381.0,4380.9,12.0358536]
[1756993381363,1e-08,4381.0,4380.9,12.3457536]
[1756993381672,1e-08,4381.0,4380.9,12.5354536]
[1756993382971,1e-08,4381.0,4380.9,12.3457536]
[1756993383170,0.02420001,4381.8,4381.7,3.07421922]
[1756993383366,0.02420001,4381.8,4381.7,8.07527022]
[1756993383561,0.02420001,4381.8,4381.7,8.07327022]
[1756993383768,0.02420001,4381.8,4381.7,3.72427022]
[1756993383993,0.02420001,4381.8,4381.7,8.07327022]
[1756993384208,0.02420001,4381.8,4381.7,2.93227022]
[1756993384373,1.23780001,4381.8,4381.7,2.39661922]
[1756993384575,1.23780001,4381.8,4379.7,15.19045826]
[1756993384895,0.8983,4381.7,4380.8,0.792]
[1756993385100,0.8983,4381.7,4381.0,0.792]
[1756993385303,0.462,4381.7,4381.6,0.1144]
[1756993385516,0.7773,4381.7,4381.6,4.4614]
[1756993385873,1.2136,4381.7,4381.6,4.4614]
[1756993386070,1.2136,4381.7,4379.9,5.257]
[1756993386297,0.8983,4381.6,4381.5,2.2823234]
[1756993386469,0.8983,4381.6,4381.5,6.6243234]
[1756993386675,0.8983,4381.6,4381.5,6.7387234]
[1756993387294,0.462,4381.6,4381.5,6.7387234]
[1756993387514,0.02420001,4381.8,4381.7,2.28221922]
[1756993387682,0.02420001,4381.8,4381.7,3.17287348]
[1756993388710,0.48620001,4381.8,4381.7,3.17287348]
[1756993389020,1.23780001,4381.8,4381.6,2.28226628]
[1756993389177,0.8983,4381.7,4381.4,4.337]
[1756993389384,0.8983,4381.6,4381.5,2.2823234]
[1756993389620,0.02420001,4381.8,4381.7,3.07421922]
[1756993390210,0.02420001,4381.8,4381.7,7.42321922]
[1756993390409,0.02420001,4381.8,4381.7,3.25277348]
[1756993390623,1.23780001,4381.8,4381.7,6.62921922]
[1756993390920,0.02420001,4381.8,4381.7,6.62921922]
[1756993391296,0.48620001,4381.8,4381.7,6.62921922]
[1756993391718,1.23780001,4381.8,4381.7,6.62921922]
[1756993391895,0.02420001,4381.8,4381.7,7.51837303]
[1756993392323,1.23780001,4381.8,4381.7,6.62421922]
[1756993392525,1.23780001,4381.8,4381.7,4.339]
[1756993393226,1.23780001,4381.8,4381.1,2.28248036]
[1756993393227,1.23780001,4381.8,4381.5,4.34]
[1756993393426,0.8983,4381.7,4381.5,4.34]
[1756993393631,1.2136,4381.6,4379.6,15.19045826]
[1756993393814,0.3153,4381.6,4381.0,2.2825643]
[1756993393996,0.8983,4381.5,4381.1,4.336]
[1756993394190,0.3153,4381.2,4381.1,4.336]
[1756993394439,1.2136,4381.2,4381.1,4.336]
[1756993394735,1.2136,4381.2,4381.1,6.61853178]
[1756993394895,0.02420001,4381.8,4381.7,2.28221922]
[1756993395095,0.02420001,4381.8,4381.7,6.61321922]
[1756993397424,0.02420001,4381.8,4381.7,6.60621922]
[1756993397627,0.02420001,4381.8,4381.7,7.39821922]
[1756993397931,0.02420001,4381.8,4381.7,7.70811922]
[1756993398106,0.02420001,4381.8,4381.7,3.63996963]
[1756993398309,0.02420001,4381.8,4381.7,7.95996963]
[1756993398536,0.02420001,4381.8,4381.7,7.95896963]
[1756993398845,0.02420001,4381.8,4381.7,6.60121922]
[1756993399058,0.02420001,4381.8,4381.7,6.71561922]
[1756993399403,0.02420001,4381.8,4381.7,7.50761922]
[1756993401243,0.02420001,4381.8,4381.7,3.18861922]
[1756993401568,0.02420001,4381.8,4381.7,0.1144]
[1756993401769,1.23780001,4381.8,4381.7,0.1144]
[1756993401941,1.23780001,4381.8,4381.7,6.70561922]
[1756993402141,1.23780001,4381.8,4381.7,4.4234]
[1756993402367,1.23780001,4381.8,4381.7,6.70561922]
[1756993402868,0.02420001,4381.8,4381.7,7.91431336]
[1756993403074,0.00100001,4382.8,4382.7,3.07369849]
[1756993403279,0.00100001,4382.8,4382.7,7.37869849]
[1756993403446,0.00100001,4382.8,4382.7,7.68859849]
[1756993403838,0.00100001,4382.8,4382.7,7.37869849]
[1756993404167,0.00100001,4382.8,4382.7,8.34474542]
[1756993404347,0.00100001,4382.8,4382.7,8.65464542]
[1756993404753,0.00100001,4382.8,4382.7,8.34474542]
[1756993405066,0.00100001,4382.8,4382.7,8.34074542]
[1756993405642,0.00100001,4382.8,4382.7,9.09814542]
[1756993406074,0.00100001,4382.8,4382.7,12.28784542]
[1756993407045,0.00100001,4382.8,4382.7,27.47830368]
[1756993407246,1e-08,4383.3,4383.2,3.07343821]
[1756993407447,1e-08,4383.8,4383.7,3.073178]
[1756993407745,0.8983,4385.3,4384.7,3.07265774]
[1756993407966,0.4613,4384.8,4383.7,0.3099]
[1756993408186,0.025,4384.8,4383.8,0.25910919]
[1756993408385,0.025,4384.8,4383.4,0.792]
[1756993408386,0.4363,4384.7,4383.4,0.792]
[1756993408588,0.4363,4384.7,4383.0,2.28151295]
[1756993408589,0.8975,4384.7,4383.0,2.28151295]
[1756993408891,0.8975,4384.7,4384.6,2.28070975]
[1756993409254,0.025,4384.8,4384.7,2.28065774]
[1756993410481,0.8139,4384.8,4382.8,0.1897]
[1756993410688,1.2421,4384.8,4384.3,2.2808197]
[1756993410905,0.9059,4384.7,4382.2,0.1897]
[1756993411060,3.18656361,4384.7,4383.4,2.28128426]
[1756993411389,3.50777663,4384.6,4383.7,2.28113529]
[1756993411588,3.50777663,4384.6,4383.4,2.28128426]
[1756993411589,0.79885636,4384.6,4382.2,3.0]
[1756993411758,0.4282,4384.5,4384.0,2.28097463]
[1756993411959,0.4282,4384.5,4384.1,2.28096863]
[1756993412158,0.9059,4384.4,4384.0,2.28102066]
[1756993412353,0.4777,4384.3,4384.2,2.28091784]
[1756993412553,0.9309,4384.8,4384.2,2.28091108]
[1756993412770,1.25203505,4384.8,4383.4,0.792]
[1756993413087,0.9309,4384.8,4383.4,0.792]
[1756993413291,1.0453,4384.8,4384.3,2.28085214]
[1756993413588,0.9059,4384.7,4384.3,2.28082248]
[1756993413780,0.9059,4384.7,4384.4,2.28076531]
[1756993414088,0.9059,4384.7,4384.6,2.39510975]
[1756993414452,0.025,4384.8,4384.7,2.28065774]
[1756993414653,0.025,4384.8,4384.6,2.39510224]
[1756993414856,1.2171,4384.7,4384.6,0.1144]
[1756993415373,1.2171,4384.7,4383.6,0.792]
[1756993415572,1.2171,4384.7,4384.3,0.1144]
[1756993415780,0.4777,4384.6,4384.5,2.28076177]
[1756993415987,0.025,4384.8,4384.7,2.28065774]
[1756993416397,1.2421,4384.8,4384.7,2.28065774]
[1756993416576,1.2421,4384.8,4384.7,2.39505774]
[1756993416764,0.025,4384.8,4384.7,2.39505774]
[1756993416966,0.025,4384.8,4384.7,3.94923945]
[1756993417199,1e-08,4384.8,4384.7,4.38063945]
[1756993417573,0.026,4385.8,4385.7,2.28013772]
[1756993417773,0.026,4385.8,4385.7,3.07213772]
[1756993417976,0.026,4385.8,4385.7,3.48113772]
[1756993418192,0.026,4385.8,4385.7,3.7626727]
[1756993418491,0.026,4385.8,4385.7,3.18653772]
[1756993418694,0.026,4385.8,4385.7,2.39453772]
[1756993419000,1.2431,4385.8,4385.7,0.1144]
[1756993419599,0.026,4385.8,4385.7,2.39453772]
[1756993419805,1.2431,4385.8,4385.7,0.1144]
[1756993420562,0.5037,4385.8,4385.7,0.1144]
[1756993420763,0.025,4386.8,4385.8,3.07208573]
[1756993420967,0.025,4387.8,4387.7,2.27909838]
[1756993421468,0.9309,4387.8,4387.7,2.27909838]
[1756993421668,0.9309,4387.8,4386.9,0.792]
[1756993421870,0.9309,4387.8,4386.5,0.792]
[1756993422076,0.9309,4387.8,4387.7,2.27909838]
[1756993422270,0.025,4387.8,4387.7,2.27909838]
[1756993422682,0.025,4387.8,4387.7,3.07109838]
[1756993423403,0.026,4387.8,4387.7,3.07109838]
[1756993423906,0.026,4387.8,4387.7,3.85607107]
[1756993424107,0.026,4387.8,4387.7,3.53868009]
[1756993424410,0.026,4387.8,4387.7,3.07109838]
[1756993425282,0.5037,4387.8,4387.7,2.27909838]
[1756993426194,0.026,4387.8,4387.7,2.27909838]
[1756993426398,0.5037,4387.8,4386.3,3.16763132]
[1756993426693,0.8149,4387.8,4387.4,2.27920842]
[1756993426896,0.9059,4387.7,4387.5,2.27915913]
[1756993427081,0.9059,4387.6,4387.5,2.27915913]
[1756993427404,0.4777,4387.6,4387.5,2.27915913]
[1756993427571,0.3112,4387.6,4385.9,11.85625165]
[1756993427776,0.3112,4387.6,4385.3,2.28030467]
[1756993427777,0.4282,4387.5,4386.2,1.22876517]
[1756993428104,0.9059,4387.4,4385.3,2.28030467]
[1756993428279,3.18519675,4387.4,4385.9,2.28003374]
[1756993428480,3.18519675,4387.4,4386.5,2.27967395]
[1756993428703,0.4777,4387.4,4386.0,2.27998176]
[1756993428909,0.026,4387.8,4387.4,2.27924262]
[1756993429204,0.026,4387.8,4387.7,2.27909838]
[1756993429706,0.026,4387.8,4386.7,3.792]
[1756993429909,1.2431,4387.8,4387.0,0.792]
[1756993430216,1.2431,4387.8,4386.0,0.4314]
[1756993430397,1.2431,4387.8,4384.5,2.28073504]
[1756993430398,0.9059,4387.7,4385.8,0.025]
[1756993430580,2.27920227,4387.5,4385.8,0.025]
[1756993430785,2.27956025,4386.9,4386.1,2.27992046]
[1756993431004,0.9059,4386.8,4386.3,0.1136]
[1756993431205,0.1136,4387.3,4386.7,2.27957217]
[1756993431512,0.9059,4387.4,4386.8,0.792]
[1756993431683,0.4777,4387.4,4387.2,0.1136]
[1756993432319,0.026,4387.8,4387.3,2.27930325]
[1756993432491,0.026,4387.8,4387.2,0.1136]
[1756993432690,0.026,4387.8,4387.7,0.1136]
[1756993433412,0.5541,4387.8,4387.7,0.1136]
[1756993433615,0.0764,4387.8,4387.7,0.1136]
[1756993433821,0.0764,4387.8,4387.7,2.39269838]
[1756993433984,0.0756,4387.8,4387.7,3.18469838]
[1756993434417,0.0756,4387.8,4387.7,0.9056]
[1756993434802,0.0756,4387.8,4387.7,3.18469838]
[1756993434992,0.0756,4387.8,4387.7,3.61748806]
[1756993435192,0.0756,4387.8,4387.7,3.73108806]
[1756993435395,0.0756,4387.8,4387.7,4.02568806]
[1756993435600,0.0756,4387.8,4387.7,4.04847904]
[1756993435798,0.0756,4387.8,4387.7,4.02568806]
[1756993436400,0.0756,4387.8,4387.7,3.73108806]
[1756993436621,0.0756,4387.8,4387.7,3.18469838]
[1756993436789,1.2927,4387.8,4387.7,0.1136]
[1756993437535,0.0756,4387.8,4387.7,3.18469838]
[1756993438520,0.0756,4387.8,4387.7,6.47929838]
[1756993438720,0.0756,4387.8,4387.7,6.91069838]
[1756993438927,0.0756,4387.8,4387.7,6.47929838]
[1756993439508,0.0756,4387.8,4387.7,6.91069838]
[1756993442292,0.001,4388.3,4388.2,3.49152257]
[1756993443785,0.001,4388.3,4388.2,2.69952257]
[1756993444020,0.4553,4388.3,4388.2,0.1136]
[1756993444221,1.2027,4388.3,4388.2,2.3924387]
[1756993444395,1.2027,4388.3,4388.2,3.1844387]
[1756993444597,1.2027,4388.3,4388.2,0.1136]
[1756993445098,1.2027,4388.3,4386.8,0.004]
[1756993445301,1.2027,4388.3,4388.0,0.1136]
[1756993445501,0.4543,4388.2,4388.0,0.1136]
[1756993445728,0.9066,4388.2,4388.0,0.1136]
[1756993445917,1.2017,4388.1,4388.0,0.1136]
[1756993446437,3.48059063,4388.1,4387.4,2.27924078]
[1756993446729,0.9066,4388.0,4386.8,0.25737]
[1756993446929,2.27901313,4387.9,4387.1,2.27936802]
[1756993447234,0.2951,4387.2,4386.8,0.029]
[1756993447601,0.9066,4387.1,4387.0,2.27945648]
[1756993447799,1.2017,4387.1,4387.0,2.27945648]
[1756993448140,3.0,4388.2,4386.8,0.029]
[1756993448141,0.4543,4387.8,4386.8,0.029]
[1756993448303,0.4523,4387.6,4386.8,0.029]
[1756993448502,0.4523,4387.6,4386.9,0.792]
[1756993448798,0.4543,4387.8,4387.0,0.792]
[1756993449003,0.4543,4387.8,4387.4,2.27921316]
[1756993449302,0.2951,4387.5,4387.0,2.27946204]
[1756993449509,0.2951,4387.5,4386.8,0.029]
[1756993449510,0.9066,4387.4,4387.3,3.07130617]
[1756993449833,0.9066,4388.1,4387.4,0.792]
[1756993450022,0.9066,4388.1,4387.0,0.81479462]
[1756993450223,0.001,4388.3,4387.4,0.792]
[1756993450426,0.001,4388.3,4388.2,2.2788387]
[1756993450929,1.2027,4388.3,4387.7,2.27905444]
[1756993451132,1.2027,4388.3,4387.0,2.2794617]
[1756993451133,0.9066,4388.2,4387.2,2.27931432]
[1756993451338,0.9066,4388.2,4387.5,2.27915797]
[1756993451635,0.9066,4388.2,4387.2,3.792]
[1756993451803,0.9066,4388.2,4388.0,2.27890363]
[1756993452132,0.001,4388.3,4388.2,2.2788387]
[1756993452332,0.001,4388.3,4388.1,2.27888104]
[1756993452632,0.2951,4388.0,4387.2,0.792]
[1756993452830,0.2951,4388.0,4387.1,2.27939621]
[1756993453031,0.9066,4387.9,4386.9,0.59674382]
[1756993453209,0.2951,4387.0,4386.8,2.30855568]
[1756993453399,0.9066,4386.9,4386.8,0.029]
[1756993453799,1.2017,4386.9,4386.8,0.029]
[1756993455808,1.2017,4386.9,4386.8,2.30856597]
[1756993456008,2.73150625,4387.5,4386.8,0.029]
[1756993456220,3.00465687,4387.5,4386.8,2.30856376]
[1756993456439,0.1136,4387.3,4386.8,2.30856376]
[1756993456733,0.9066,4387.9,4386.9,0.792]
[1756993456904,0.4543,4387.9,4387.3,0.1136]
[1756993457230,0.2951,4387.4,4386.8,0.029]
[1756993457429,0.1136,4387.2,4386.8,0.029]
[1756993457812,0.2951,4386.9,4386.8,0.029]
[1756993458000,1.2017,4386.9,4386.8,0.029]
[1756993458404,3.481214,4386.9,4386.8,0.029]
[1756993458804,3.594814,4386.9,4386.8,0.029]
[1756993459118,4.18223655,4386.9,4386.8,0.029]
[1756993459632,7.18143655,4386.9,4386.8,0.029]
[1756993462814,0.001,4387.8,4386.8,0.3212]
[1756993463014,0.1136,4387.4,4387.0,2.27943105]
[1756993463329,0.1146,4387.8,4387.1,2.39296835]
[1756993463528,2.27911261,4387.7,4387.1,0.1136]
[1756993463709,0.1146,4387.8,4387.1,0.1136]
[1756993464256,0.1146,4387.8,4387.1,0.35580101]
[1756993464407,0.1146,4387.8,4387.7,3.36329838]
[1756993464408,0.001,4387.8,4387.7,3.36329838]
[1756993464605,0.001,4387.8,4387.7,3.94609838]
[1756993464809,0.001,4387.8,4387.7,7.13579838]
[1756993465418,0.001,4387.8,4387.7,6.47689838]
[1756993465729,0.001,4387.8,4387.7,2.39269838]
[1756993465911,0.001,4387.8,4387.7,0.1136]
[1756993466435,1.2027,4387.8,4386.9,0.792]
[1756993466628,1.2027,4387.8,4387.3,2.39290564]
[1756993466831,0.9066,4387.7,4387.3,0.1136]
[1756993467016,0.9066,4387.7,4387.3,2.39289613]
[1756993467222,0.2961,4387.8,4386.8,0.029]
[1756993467223,0.2951,4387.4,4386.8,0.029]
[1756993467643,0.2951,4387.4,4387.0,2.27945148]
[1756993467811,0.7494,4387.4,4386.9,0.1136]
[1756993468019,0.1136,4387.5,4386.9,0.1136]
[1756993468218,0.1136,4387.5,4386.9,2.39311112]
[1756993468549,0.1136,4387.5,4387.0,2.27945012]
[1756993468955,0.9066,4387.4,4386.9,0.1136]
[1756993469122,0.4543,4387.3,4386.9,0.1136]
[1756993469658,0.1136,4387.5,4387.0,2.27943884]
[1756993469943,0.1136,4387.5,4387.1,2.27936683]
[1756993470120,0.1136,4387.5,4386.9,0.1136]
[1756993470327,0.001,4387.8,4386.9,0.792]
[1756993470527,0.001,4387.8,4387.7,2.58429838]
[1756993470727,0.001,4387.8,4387.7,2.39269838]
[1756993471045,0.001,4387.8,4387.1,0.792]
[1756993471046,1.2182,4387.8,4387.3,0.1136]
[1756993471249,0.001,4387.8,4387.7,2.27909838]
[1756993472042,0.001,4387.8,4387.6,2.39274597]
[1756993472243,0.001,4387.8,4387.7,2.27909838]
[1756993472742,0.001,4387.8,4387.7,2.74628836]
[1756993473064,0.001,4387.8,4387.7,3.05148836]
[1756993473532,0.001,4387.8,4387.7,2.74628836]
[1756993474256,0.001,4387.8,4387.7,0.46718998]
[1756993474419,0.001,4387.8,4387.7,2.27909838]
[1756993474749,1.2182,4387.8,4387.6,0.1136]
[1756993474918,0.902,4387.7,4387.4,0.1136]
[1756993475242,0.902,4387.7,4387.3,2.27929793]
[1756993475411,0.902,4387.7,4386.6,3.0]
[1756993475412,0.4743,4387.6,4387.4,2.27925094]
[1756993475612,0.001,4387.8,4387.6,2.27911185]
[1756993475811,0.001,4387.8,4387.2,0.1136]
[1756993476045,0.001,4387.8,4387.7,2.27909838]
[1756993476229,0.001,4387.8,4387.2,0.1136]
[1756993476554,0.001,4387.8,4387.5,0.1136]
[1756993476720,0.001,4387.8,4387.1,2.27936539]
[1756993476915,0.3152,4387.5,4387.3,0.1136]
[1756993477131,0.902,4387.4,4386.9,0.1136]
[1756993477348,0.902,4387.3,4386.9,0.1136]
[1756993477553,0.902,4387.3,4387.0,2.27941804]
[1756993477722,0.902,4387.3,4386.9,0.1136]
[1756993478046,0.902,4387.2,4386.9,2.39310859]
[1756993478247,0.902,4387.2,4386.9,0.1136]
[1756993478450,0.3152,4387.0,4386.8,0.029]
[1756993478841,0.902,4386.9,4386.8,0.029]
[1756993479039,0.4743,4386.9,4386.8,0.029]
[1756993479240,0.1136,4387.2,4386.8,0.029]
[1756993479629,0.902,4387.1,4386.8,0.029]
[1756993479831,0.4743,4387.1,4386.8,0.029]
[1756993480353,0.902,4387.0,4386.8,0.029]
[1756993480552,0.4743,4386.9,4386.8,0.029]
[1756993480849,0.1136,4387.2,4387.0,2.27944767]
[1756993481020,0.1136,4387.2,4386.8,0.029]
[1756993481224,0.001,4387.8,4387.4,2.27924015]
[1756993481443,0.1146,4387.8,4387.3,2.2793005]
[1756993481842,0.1146,4387.8,4387.2,0.1136]
[1756993481843,0.5889,4387.8,4387.2,0.1136]
[1756993482088,3.26961822,4387.8,4387.2,0.1136]
[1756993482291,0.3152,4387.3,4387.2,0.1136]
[1756993482457,0.3152,4387.3,4386.8,0.029]
[1756993482650,0.902,4387.2,4386.8,0.1426]
[1756993482879,0.1136,4387.4,4386.9,2.27950244]
[1756993483083,2.39281911,4387.5,4386.9,0.1136]
[1756993483292,0.902,4387.3,4386.9,0.1136]
[1756993483584,0.1136,4387.7,4387.3,2.27929668]
[1756993483788,0.4277,4387.6,4387.0,2.27946204]
[1756993483984,0.3152,4387.4,4386.9,0.1136]
[1756993484489,0.3152,4387.4,4386.8,0.029]
[1756993484490,0.902,4387.3,4386.8,0.029]
[1756993484853,0.9012,4387.2,4386.8,0.029]
[1756993485053,0.9012,4387.2,4386.8,2.30856339]
[1756993485293,0.1136,4387.4,4386.8,0.029]
[1756993485588,0.1136,4387.7,4387.2,2.27934864]
[1756993485811,0.1136,4387.7,4387.2,2.27935813]
[1756993485951,0.1136,4387.7,4387.3,2.2792546]
[1756993486154,0.001,4387.8,4387.5,2.27918971]
[1756993486691,0.001,4387.8,4387.5,2.27915412]
[1756993486896,0.001,4387.8,4387.7,3.37629838]
[1756993487093,0.001,4387.8,4387.7,3.48989838]
[1756993487310,0.001,4387.8,4387.7,4.15039838]
[1756993487861,0.001,4387.8,4387.7,4.03679838]
[1756993488462,0.001,4387.8,4387.7,4.15039838]
[1756993488789,0.001,4387.8,4387.7,4.13285586]
[1756993488987,0.001,4387.8,4387.7,4.70254684]
[1756993489180,0.001,4387.8,4387.7,4.79335586]
[1756993489571,0.001,4387.8,4387.7,4.60285586]
[1756993489773,0.001,4387.8,4387.7,4.79335586]
[1756993490494,0.001,4387.8,4387.7,4.60285586]
[1756993491099,0.001,4387.8,4387.7,4.13285586]
[1756993492476,0.001,4387.8,4387.7,3.82765586]
[1756993492989,0.001,4387.8,4387.7,3.18469838]
[1756993493364,0.7905,4387.8,4387.7,0.1136]
[1756993493564,1.2182,4387.8,4387.7,0.1136]
[1756993494669,1.2182,4387.8,4387.5,0.1136]
[1756993494880,0.3162,4387.8,4387.5,0.1136]
[1756993495082,0.001,4387.8,4387.7,2.58429838]
[1756993495282,0.001,4387.8,4387.7,2.27909838]
[1756993495697,0.001,4387.8,4387.7,3.07427844]
[1756993495886,0.001,4387.8,4387.7,3.95708746]
[1756993496399,0.001,4387.8,4387.7,3.65188746]
[1756993496704,0.001,4387.8,4387.7,3.18469838]
[1756993496889,0.001,4387.8,4387.7,3.07109838]
[1756993497900,0.001,4387.8,4387.7,3.37629838]
[1756993498403,0.001,4387.8,4387.7,7.03679838]
[1756993498875,0.001,4387.8,4387.7,6.84629838]
[1756993499076,0.001,4387.8,4387.7,7.75884746]
[1756993499276,0.001,4387.8,4387.7,7.73404746]
[1756993499471,0.001,4387.8,4387.7,7.92454746]
[1756993500486,1e-08,4388.8,4388.7,3.07057907]
[1756993500692,1e-08,4388.8,4388.7,6.07057907]
[1756993500922,1e-08,4388.8,4388.7,7.19930208]
[1756993501409,1e-08,4388.8,4388.7,7.66790208]
[1756993501742,1e-08,4388.8,4388.7,7.85840208]
[1756993502114,1e-08,4388.8,4388.7,7.19930208]
[1756993502514,1e-08,4388.8,4388.7,6.90550208]
[1756993503028,1e-08,4388.8,4388.7,5.27857907]
[1756993503230,0.78980001,4388.8,4388.7,2.27857907]
[1756993503428,1.25990001,4388.8,4387.2,2.27935813]
[1756993503629,1.25990001,4388.8,4387.2,2.44651005]
[1756993504043,1.25990001,4388.8,4388.3,2.2787657]
[1756993504358,0.02500001,4388.8,4388.7,2.27857907]
[1756993504664,1.25990001,4388.8,4387.7,5.27909838]